Cogmind - Beta 16 *** ADVENTURER MODE // 2025.10.24 @ 14:04:05 Player: Plonker Result: Destroyed by D-53 Grenadier with Mini Grenade Launcher Performance ------------- Evolutions (0) 0 Regions Visited (2) 400 Robots Destroyed (10) 50 Value Destroyed (340) 340 Prototype IDs (0) 0 Alien Tech Used (0) 0 Bonus (0) 0 TOTAL SCORE: 790 Bonus ------- None Cogmind --------- Core Integrity 0/250 Matter 38/300 Energy 132/250 System Corruption 1% Temperature Cool (0) Movement Core (100) Ox1 Location -10/Mines Parts ------- > --- POWER (1) -------- Ion Engine > --- PROPULSION (2) --- (None) > --- UTILITY (2) ------ (None) > --- WEAPON (2) ------- (None) > --- INVENTORY (5) ---- (None) Peak State ------------ > --- POWER ------------ Ion Engine > --- PROPULSION ------- Light Treads Light Treads > --- UTILITY ---------- Small Storage Unit > --- WEAPON ----------- Assault Rifle Assault Rifle > --- INVENTORY -------- Ion Engine Aluminum Leg Aluminum Leg [Rating: 6] Favorites ----------- Power Ion Engine Engine Ion Engine Propulsion Light Treads Treads Light Treads Leg Aluminum Leg Hover Unit Hover Unit Utility Small Storage Unit Storage Small Storage Unit Weapon Assault Rifle Ballistic Gun Assault Rifle Launcher Grenade Launcher Build | -11 -10 -10 ------- Run | Yrd Mat Min Slots Evolved . | . . . Power . | . . . Propulsion . | . . . Utility . | . . . Weapon . | . . . Parts Attached 16 | 5 4 7 Power 3 | 1 . 2 Engine 3 | 1 . 2 Core . | . . . Reactor . | . . . Propulsion 5 | 2 . 3 Treads 2 | 2 . . Leg 2 | . . 2 Wheel . | . . . Hover 1 | . . 1 Flight . | . . . Utility 1 | . 1 . Device . | . . . Storage 1 | . 1 . Processor . | . . . Hackware . | . . . Protection . | . . . Artifact . | . . . Weapon 7 | 2 3 2 Energy Gun . | . . . Energy Cannon . | . . . Ballistic Gun 2 | 2 . . Ballistic Cannon . | . . . Launcher 5 | . 3 2 Special Weapon . | . . . Impact Weapon . | . . . Slashing Weapon . | . . . Piercing Weapon . | . . . Special Melee Weapon . | . . . Unidentified Prototypes . | . . . Parts Lost 11 | . 1 10 Power 1 | . . 1 Propulsion 5 | . . 5 Utility . | . . . Weapon 5 | . 1 4 Highest Loss Streak 10 | . 1 10 To Critical Strikes . | . . . Average Backups 5 | 2 5 5 Power 1 | . 1 1 Propulsion 2 | . 2 2 Utility . | . . . Weapon 1 | . 1 1 Tool/Special . | . . . Unused Backups . | . . . Power . | . . . Propulsion . | . . . Utility . | . . . Weapon . | . . . Tool/Special . | . . . Average Slot Usage (%) 82 | . 85 69 Engine 14 | . 14 14 Treads 26 | . 28 17 Leg 1 | . . 7 Storage 14 | . 14 14 Ballistic Gun 12 | . 14 . Launcher 13 | . 13 14 Peak Build Rating 6 | 5 6 6 Average Rating 5 | 3 5 4 On Entrance 3 | . 5 6 Avg Prop Armor Cover (%) 14 | . . 14 Naked Turns . | . . . Heaviest Build 16 | 9 16 16 Greatest Support 40 | 40 40 40 Greatest Overweight (x) 2 | . . 2 Average Overweight (x) . | . . . Largest Inventory Capacity 8 | 5 8 8 Average Capacity 7 | 5 8 7 Most Carried 8 | 4 8 7 Average Carried 5 | 2 5 5 Final Capacity 8 | 5 8 5 Final Carried 7 | 4 7 . Class Distribution -------------------- 100% | Mutant Dominant Class ---------------- Mutant | -10/Materials Mutant | -10/Mines Resources | -11 -10 -10 ----------- Run | Yrd Mat Min Matter Collected 309 | 210 15 84 Remotely . | . . . Salvage Created 244 | . 196 48 Parts 15 | . 15 . Haulers Intercepted . | . . . Recyclers Shooed . | . . . Parts Field Recycled . | . . . Retrieved Matter . | . . . Parts Self-Destructed . | . . . Prevented . | . . . Parts Restored . | . . . Kills | -11 -10 -10 ------- Run | Yrd Mat Min Combat Hostiles Destroyed 24 | . 8 16 AOE 24 | . 8 16 Classes Destroyed 3 | . 2 1 Watcher 2 | . 2 . Grunt 8 | . 8 . Assembled 16 | . . 16 Best Kill Streak 16 | . 6 16 Combat Bots Only 16 | . 6 16 Max Kills in Single Turn 5 | . 2 5 Gunslinging . | . . . Exploded 5 | . 2 5 Melee . | . . . Uniques/NPCs Destroyed . | . . . Combat | -11 -10 -10 -------- Run | Yrd Mat Min Hostile Shots Fired 120 | . 44 76 Missed 29 | . 14 15 Hits 91 | . 30 61 Melee 4 | . . 4 Projectile 87 | . 30 57 AOE 6 | . . 6 Part Disruptions 2 | . . 2 Damage Taken 1254 | . 362 892 Core 258 | . 55 203 Absorbed by Shields . | . . . Ignored by Resistances 369 | . 111 258 Core Remaining (%) 100 | 100 . . Volleys Fired 16 | . 12 4 Largest 2 | . 2 1 Hottest 60 | . 60 30 Shots Fired 27 | . 23 4 Gun . | . . . Cannon . | . . . Launcher 27 | . 23 4 Special . | . . . Kinetic . | . . . Thermal . | . . . Explosive 27 | . 23 4 Electromagnetic . | . . . Robot Hit Streak 11 | . 11 4 Robot Miss Streak 1 | . 1 . Penetration Max . | . . . Secondary Targets . | . . . Shots Hit Robots 19 | . 15 4 Core Hits 55 | . 22 33 Critical Kills . | . . . Critical Parts Destroyed . | . . . Critical Strikes . | . . . Melee Attacks . | . . . Impact . | . . . Slashing . | . . . Piercing . | . . . Sneak Attacks . | . . . Combat Hostiles . | . . . Follow-up Attacks . | . . . Damage Inflicted 1679 | . 738 941 Guns . | . . . Cannons . | . . . Explosions 1666 | . 738 928 Melee . | . . . Ramming 13 | . . 13 Kinetic . | . . . Thermal . | . . . Explosive 1666 | . 738 928 Electromagnetic . | . . . Impact . | . . . Slashing . | . . . Piercing . | . . . Highest Corruption 1 | . 1 1 Average Corruption 1 | . 1 1 Corruption Purged . | . . . Corruption Blocked . | . . . Effects 1 | . . 1 Matter Fused 1 | . . 1 Overload Shots . | . . . Overflow Damage 32 | . 10 22 Projectiles . | . . . Explosions 32 | . 10 22 Melee . | . . . Knockbacks . | . . . Impact . | . . . Kinetic . | . . . Secondary . | . . . Self-Inflicted Damage 166 | . 59 107 Shots 8 | . 4 4 Rammed 1 | . . 1 Targets Rammed 4 | . . 4 Kicked 3 | . . 3 Crushed . | . . . Highest Temperature 30 | . 24 30 Average Temperature 11 | . 10 13 Received Heat Transfer 475 | . 222 253 Siege Activations . | . . . Martial Activations . | . . . Shielding Activations . | . . . Robots Disrupted . | . . . Combat Hostiles . | . . . Robots Corrupted . | . . . Combat Hostiles . | . . . Parts Fried . | . . . Impact Corruptions . | . . . Robots Melted . | . . . Combat Hostiles . | . . . Parts Melted . | . . . Heat Transferred . | . . . Parts Sabotaged . | . . . Parts Stolen . | . . . Parts Stripped . | . . . Power Chain Reactions . | . . . Alert | -11 -10 -10 ------- Run | Yrd Mat Min Maximum Alert Level . | . . . Low Security (%) 100 | 100 100 100 Level 1 . | . . . Level 2 . | . . . Level 3 . | . . . Level 4 . | . . . Level 5 . | . . . High Security . | . . . Max Security . | . . . Peak Influence 188 | . 188 57 Initial 57 | . . 57 Average 44 | . 54 25 Influence Increases 335 | . 317 18 Destroy 0b10 Robot/C 160 | . 160 . Destroy 0b10 Robot/NC 10 | . 10 . Destroy Leader 44 | . 44 . Disable Machine 9 | . 9 . Destroy Structure 112 | . 94 18 Influence Decreases 335 | . 141 194 Entered New Map 119 | . . 119 Time Decay 109 | . 90 19 Lost Part 66 | . 10 56 Purge Threat 41 | . 41 . Squads Dispatched 3 | . 3 . Investigation 3 | . 3 . Extermination . | . . . Reinforcement . | . . . Assault . | . . . Garrison . | . . . Intercept . | . . . Searches Triggered . | . . . Construction Impeded . | . . . Haulers Reinforced . | . . . Active Scanning Responses . | . . . Cargo Convoy Interrupts . | . . . Stealth | -11 -10 -10 --------- Run | Yrd Mat Min Distress Signals 1 | . 1 . Communications Jammed . | . . . Distress Signals . | . . . Times Spotted 38 | . 12 26 Peak Tracking Total 22 | . 4 22 Tactical Retreats 1 | . . 1 Traps | -11 -10 -10 ------- Run | Yrd Mat Min Traps Triggered 1 | . 1 . Indirectly . | . . . Trap Hack Attempts . | . . . Triggered . | . . . Disarmed 1 | . 1 . Reprogrammed . | . . . Reused . | . . . Traps Extracted . | . . . Installed . | . . . Triggered . | . . . Machines | -11 -10 -10 ---------- Run | Yrd Mat Min Machines Disabled 2 | . 2 . Max in Single Turn 1 | . 1 . Machines Repaired . | . . . Machines Dismantled . | . . . Machines Sabotaged . | . . . Overloaded Fab Kills . | . . . Hacking | -11 -10 -10 --------- Run | Yrd Mat Min Machines Accessed 3 | . 3 . Terminals 3 | . 3 . Fabricators . | . . . Repair Stations . | . . . Recycling Units . | . . . Scanalyzers . | . . . Garrison Access . | . . . Total Hacks 12 | . 12 . Successful 6 | . 6 . Failed 6 | . 6 . Catastrophic . | . . . Database Lockouts . | . . . Manual 5 | . 5 . Terminals 12 | . 12 . Fabricators . | . . . Repair Stations . | . . . Recycling Units . | . . . Scanalyzers . | . . . Garrison Access . | . . . Terminal Hacks 3 | . 3 . Unreport Threat 2 | . 2 . Disarm Traps 1 | . 1 . Fabricator Hacks . | . . . Repair Station Hacks . | . . . Recycling Unit Hacks . | . . . Scanalyzer . | . . . Garrison Access Hacks . | . . . Unauthorized Hacks 3 | . 3 . Terminals 3 | . 3 . Botnet 3 | . 3 . Fabricators . | . . . Repair Stations . | . . . Recycling Units . | . . . Scanalyzers . | . . . Garrison Access . | . . . Data Cores Recovered . | . . . Used . | . . . Hacking Detections 3 | . 3 . Full Trace Events 3 | . 3 . Feedback Events 1 | . 1 . Corruption 1 | . 1 . Feedback Blocked . | . . . Robot Schematics Acquired . | . . . Robots Built . | . . . Authchips . | . . . Time . | . . . Total Robot Build Rating . | . . . Part Schematics Acquired . | . . . Parts Built . | . . . Authchips . | . . . Time . | . . . Total Part Build Rating . | . . . Part Studies Acquired . | . . . Parts Repaired . | . . . Time . | . . . Parts Recycled . | . . . Recycled Matter . | . . . Retrieved Matter . | . . . Retrieved Components . | . . . Parts Scanalyzed . | . . . Part Schematics Acquired . | . . . Parts Damaged . | . . . Bothacking | -11 -10 -10 ------------ Run | Yrd Mat Min Used RIF Installer . | . . . Robots Hacked . | . . . Non-combat . | . . . Combat . | . . . Robot Hacks Applied . | . . . Relay Couplers Released . | . . . Fabnet Peak Effective % . | . . . Robots Rewired . | . . . Allies Hacked . | . . . Hacks Repelled . | . . . Allies | -11 -10 -10 -------- Run | Yrd Mat Min Total Allies . | . . . Largest Group . | . . . Highest-Rated Group . | . . . Highest-Rated Ally . | . . . Total Orders . | . . . Ally Attacks . | . . . Total Damage . | . . . Kills . | . . . Allies Corrupted . | . . . Allies Melted . | . . . Intel | -11 -10 -10 ------- Run | Yrd Mat Min Active Infowar (turns) . | . . . Robot Analysis Total . | . . . Derelict Logs Recovered . | . . . Drone Launches . | . . . Drone Recoveries . | . . . Exploration | -11 -10 -10 ------------- Run | Yrd Mat Min Turns Passed 574 | 67 439 68 Spaces Moved 313 | 37 245 31 Core 7 | 5 . 2 Treads 299 | 32 245 22 Legs 3 | . . 3 Wheels . | . . . Hover 4 | . . 4 Flight . | . . . Fastest Speed 50 | 50 160 60 Average Speed 156 | 145 160 147 Slowest Speed 180 | 160 160 180 Overloaded Moves . | . . . Propulsion Burnouts . | . . . Robots Hopped . | . . . Potential Cave-ins . | . . . Cave-ins Triggered . | . . . Exploration Rate (%) 20 | 4 45 11 Regions Visited 2 Branch Regions 1 Pre-discovered Areas . | . . . Known Exits Taken . | . . . Unknown Exits Taken 2 | 1 1 . Scrap Searched . | . . . Spaces Dug . | . . . Terrain Destroyed 128 | . 105 23 Melee . | . . . Projectile . | . . . AOE 128 | . 105 23 Terrain Rammed . | . . . Walls Destroyed . | . . . Machines Disabled . | . . . Actions | -11 -10 -10 --------- Run | Yrd Mat Min Total 367 | 50 269 48 Wait . | . . . Move 311 | 36 244 31 Hop . | . . . Pick Up 16 | 9 7 . Fast Attach . | . . . Attach 13 | 5 2 6 Detach . | . . . Swap 3 | . 2 1 Drop 4 | . 2 2 Fire 16 | . 12 4 Melee . | . . . Ram . | . . . Kick 3 | . . 3 Crush 1 | . . 1 Escape Stasis . | . . . Rewire . | . . . Trap . | . . . Miscellaneous . | . . . Route ------- -11/Scrapyard -10/Materials -10/Mines History --------- Turn | Location | Event 44 | -11/Scrapyard | Discovered new exit (range 15) 68 | -11/Scrapyard | Entered Materials 322 | -10/Materials | Build established: Mutant 496 | -10/Materials | Discovered new exit (range 7) 507 | -10/Materials | Entered Mines 508 | -10/Mines | Assembled infested the area 552 | -10/Mines | Core integrity fell below 50% 563 | -10/Mines | Found the Drone Emporium 569 | -10/Mines | Core integrity fell below 20% 575 | -10/Mines | Destroyed by D-53 Grenadier with Mini Grenade Launcher Last Messages --------------- [Achievement: Exterminator] 00563_ as-05398 destroyed. 00563_ Destroyed Asb. Hover Unit. 00564_ as-21850 destroyed. 00565_ NJ-YE8(g): "I'm a fan of the free market. Free drones for all! No strings attached!" 00565_ Dropped Ion Engine. 00566_ System corrupted: Matter fused (-10). 00566_ as-65309 destroyed. 00568_ Grenade Launcher destroyed. 00569_ The unstable cave ceiling collapses. 00570_ Machine disabled. 00572_ The unstable cave ceiling collapses. 00572_ Dropped Sml. Storage Unit. 00572_ NJ-YE8(g) destroyed. 00573_ D-53 Grenadier heat spikes uncontrollably. 00573_ Hover Unit destroyed. 00574_ D-53 Grenadier overheating. 00575_ The unstable cave ceiling collapses. Map ----- +----------------------------------------------------+ | ?????????????????????????????????????????????????? | | ?????????????????????????????????????????????????? | | ?????????????????????????????????????????????????? | | ?????????????????????????????????????????????????? | | ?????????????????????????????????????????????????? | | ?????????????????????????????????????????????????? | | ?????????????????????????????????????????????????? | | ?????????????????????????????????????????????????? | | ?????????????????????????????????????????????????? | | ?????????????????????????????????????????????????? | | ??????????????????????????????? $????????????????? | | ??????????????????????????????? #?#?????????????? | | ??????????????????????????????? ## #???????????? | | ???????????????????????????####% # ???????????? | | ???????????????????????#### # ???????????? | | ??????????????????????##""# ????????????? | | ??????????????????????#" #????????????? | | ??????????????????????#" " dd #?????????????? | | ??????????????????????#"! " #?????????????? | | ??????????????????????#" #?????????????? | | ???????????????????????#" #??????????????? | | ???????????????????????## ###?????????????? | | ?????????????????????### ###???????????? | | ????????????????????## ###?????????? | | ????????????????????# = #?????????? | | ????????????????????# @ ! % #?????????? | | ????????????????????#< #?????????? | | ???????????????????# # #?????????? | | ???????????????????# # #?????????? | | ???????????????????###### #?????????? | | ????????????????????????### # #####?????????? | | ??????????????????????????##########?????????????? | | ?????????????????????????????????????????????????? | | ?????????????????????????????????????????????????? | | | | | | | | | | | | | | | | | | | | | | | | | | | | | | | | | +----------------------------------------------------+ Best States ------------- Heat Dissipation 25 Energy Generation 10 Energy Capacity 250 Matter Stores 250 Matter Capacity 300 Sight Range 16 Terrain Scan Density 10 Resistance: KI 20 Resistance: TH 20 Resistance: EX 20 Resistance: EM 20 Resistance: I 20 Resistance: S 20 Resistance: P 20 Evasion (%) 45 Recoil Reduction 2 Offensive Hacking 10 Item Schematics ----------------- None Robot Schematics ------------------ None Fabricated ------------ Nothing Repaired ---------- Nothing Studied --------- None Alien Tech Used ----------------- None Achievements -------------- Exterminator Hunted Quick And Dirty Challenges ------------ None Game ------ Seed NovaMatterShield Manual? 0 Play Time 00:11:10 Cumulative 45.3 hours Start 2025.10.24 @ 13:55:34 End 2025.10.24 @ 14:04:05 Sessions 1 Manual Loads 0 Difficulty Adventurer Special Mode None Game No. 46 Rogue 0 Adventurer 46 Explorer 0 Win Type - Total 0 Types 0/0/0/0/0/0/0/0/0/0 Lore% 17 Gallery% 31 Achievement% 17 Wizard Run 0 Options --------- Layout 1 ASCII 0 Keyboard 0 Movement Mouse Keybinds 0 Fullscreen 1 Font 16/SmallcapsGlow Map View 50x40 Zoom Use 0% Tactical HUD 1 Map Filters NONE Filters NONE Steam SD RUN: 0af59949-e08c-43bb-b4db-7d8336b2a616